bitfinex-derivatives/quotes_SOLF0:USTF0_20251222
["timestamp","ask_amount","ask_price","bid_price","bid_amount"]
[1766422631315,13.20238833,127.22,127.18,0.05159118]
[1766422633619,0.05238833,127.22,127.18,16.16089118]
[1766422634726,13.20238833,127.22,127.18,0.05159118]
[1766422643026,13.20238833,127.22,127.18,0.00159118]
[1766422644625,0.05238833,127.22,127.18,7.08079118]
[1766422648527,0.05238833,127.22,127.18,0.00159118]
[1766422648528,13.20238833,127.22,127.18,0.00159118]
[1766422648822,13.15,127.2,127.18,0.00159118]
[1766422650913,13.15,127.2,127.14,8.89]
[1766422651928,0.05060143,127.18,127.16,0.05104418]
[1766422653032,0.05060143,127.18,127.16,0.00104418]
[1766422656633,12.39060143,127.18,127.16,0.00104418]
[1766422657835,12.39060143,127.18,127.11,15.9028]
[1766422659037,12.39060143,127.18,127.13,0.0499333]
[1766422660936,12.39060143,127.18,127.13,7.1320333]
[1766422665035,0.05060143,127.18,127.13,15.8820333]
[1766422665337,0.05060143,127.18,127.14,15.8314]
[1766422666527,0.05060143,127.18,127.15,7.0809]
[1766422677545,12.34,127.2,127.15,7.0809]
[1766422677736,12.34,127.22,127.16,8.64]
[1766422678735,0.05461886,127.2,127.18,0.05481807]
[1766422679334,0.05461886,127.2,127.18,0.00481807]
[1766422686047,12.29461886,127.2,127.18,0.00481807]
[1766422687842,0.05461886,127.2,127.18,0.00481807]
[1766422694054,0.00461886,127.2,127.18,8.43481807]
[1766422694259,12.24,127.24,127.18,8.43481807]
[1766422694451,12.24,127.24,127.19,15.5088]
[1766422695154,0.05946695,127.23,127.19,15.5088]
[1766422695459,12.29946695,127.23,127.18,0.00481807]
[1766422696658,12.24,127.29,127.23,15.4465]
[1766422696843,12.24,127.29,127.23,8.37]
[1766422697249,12.24,127.29,127.24,15.446]
[1766422697450,12.24,127.29,127.24,8.37]
[1766422697655,0.0525252,127.28,127.25,0.05124989]
[1766422697853,12.2925252,127.28,127.25,0.05124989]
[1766422698059,12.2925252,127.28,127.25,0.00124989]
[1766422721272,0.0525252,127.28,127.25,0.00124989]
[1766422722175,12.3625252,127.28,127.25,0.00124989]
[1766422722382,12.3625252,127.28,127.19,7.98]
[1766422722572,113.72587155,127.31,127.19,7.98]
[1766422722573,12.31,127.26,127.19,7.98]
[1766422723474,0.0517727,127.24,127.21,0.05457636]
[1766422724576,14.73498607,127.24,127.15,8.0]
[1766422724785,14.68321337,127.24,127.15,8.0]
[1766422724981,2.37321337,127.22,127.15,15.0806]
[1766422725181,12.31,127.21,127.15,15.0806]
[1766422725481,12.31,127.19,127.13,7.99]
[1766422725671,0.05881295,127.18,127.15,8.03344596]
[1766422726174,14.68321337,127.21,127.15,8.03344596]
[1766422726682,14.68321337,127.21,127.15,15.11424596]
[1766422727181,0.04945778,127.19,127.15,15.11424596]
[1766422730782,12.31,127.21,127.16,14.9903]
[1766422731674,0.05223273,127.2,127.16,14.9903]
[1766422734283,0.05223273,127.2,127.16,7.0803]
[1766422734686,0.05223273,127.2,127.15,0.05344596]
[1766422734887,12.36223273,127.2,127.15,0.05344596]
[1766422735584,12.36223273,127.2,127.15,7.91344596]
[1766422735790,12.36223273,127.2,127.15,14.99424596]
[1766422736395,12.36223273,127.2,127.16,7.0804]
[1766422740097,0.05223273,127.2,127.16,14.8904]
[1766422742696,0.05223273,127.2,127.17,7.0798]
[1766422743395,12.31,127.22,127.18,7.0793]
[1766422744198,0.05725487,127.21,127.19,0.05957702]
[1766422751696,0.05725487,127.21,127.19,7.13817702]
[1766422751996,14.72321337,127.26,127.19,7.69957702]
[1766422752196,14.72321337,127.26,127.19,7.64]
[1766422752402,14.72321337,127.26,127.2,7.0782]
[1766422752900,0.05382695,127.24,127.22,0.0603641]
[1766422780114,14.19704032,127.24,127.16,21.47880052]
[1766422780319,14.14321337,127.24,127.17,11.89]
[1766422780812,14.14321337,127.24,127.19,11.89]
[1766422781215,14.14321337,127.24,127.2,0.05685761]
[1766422781216,0.0588421,127.23,127.2,0.05685761]
[1766422781423,11.77,127.26,127.21,11.89]
[1766422782421,0.05688744,127.25,127.22,0.05087468]
[1766422784325,11.82688744,127.25,127.22,0.05087468]
[1766422784522,14.20010081,127.25,127.22,0.05087468]
[1766422785627,14.20010081,127.25,127.22,0.00087468]
[1766422786026,11.82688744,127.25,127.19,18.9688]
[1766422787131,11.82688744,127.25,127.21,0.05726358]
[1766422788626,0.05688744,127.25,127.21,11.94726358]
[1766422789629,0.05688744,127.25,127.21,19.02486358]
[1766422798338,11.82688744,127.25,127.21,0.05726358]
[1766422798641,11.82688744,127.25,127.19,18.9683]
[1766422799634,11.82688744,127.25,127.21,0.05449911]
[1766422800745,0.05688744,127.25,127.21,0.05449911]
[1766422801041,11.82688744,127.25,127.21,0.05449911]
[1766422801232,0.05688744,127.25,127.21,11.94449911]
[1766422801436,0.05688744,127.25,127.21,19.02209911]
[1766422801640,0.05688744,127.25,127.21,11.94449911]
[1766422801837,0.05688744,127.25,127.22,18.9671]
[1766422802141,11.77,127.33,127.25,11.89]
[1766422802446,11.77,127.31,127.25,7.075]
[1766422802633,11.77,127.27,127.21,11.89]
[1766422802936,11.82868266,127.25,127.23,0.00035281]
[1766422803241,11.82868266,127.25,127.18,11.89]
[1766422803438,0.05868266,127.25,127.18,122.0112]
[1766422803633,0.05868266,127.25,127.19,11.89]
[1766422804033,0.05868266,127.25,127.21,0.05812639]
[1766422806640,11.15868266,127.25,127.21,0.05812639]
[1766422806830,14.86794108,127.25,127.21,0.05812639]
[1766422808151,11.1,127.24,127.18,11.04]
[1766422809050,0.05068854,127.22,127.2,0.04946981]
[1766422815655,11.15068854,127.22,127.16,103.86]
[1766422815847,11.1,127.2,127.14,11.04]
[1766422816843,11.1,127.22,127.16,0.04948282]
[1766422817257,11.1,127.22,127.16,11.08948282]
[1766422818052,0.0544883,127.2,127.16,11.08948282]
[1766422818462,0.0044883,127.2,127.16,18.16978282]
[1766422818759,0.0044883,127.2,127.17,11.04]
[1766422819756,0.0044883,127.2,127.17,18.1198]
[1766422820346,0.0044883,127.2,127.16,0.04948282]
[1766422823646,11.1044883,127.2,127.16,0.04948282]
[1766422827658,0.0044883,127.2,127.16,0.04948282]
[1766422828547,11.1044883,127.2,127.16,0.04948282]
[1766422828948,11.1,127.18,127.12,7.0824]
[1766422829156,11.1,127.18,127.12,18.1224]
[1766422829462,11.1,127.18,127.13,11.04]
[1766422829964,0.05113752,127.17,127.14,0.05331534]
[1766422830646,11.44113752,127.17,127.1,7.0833]
[1766422830846,11.44113752,127.17,127.09,11.83]
[1766422831047,11.39,127.17,127.09,11.83]
[1766422831664,0.06024419,127.14,127.12,0.05495357]
[1766422831963,92.84,127.18,127.12,11.88495357]
[1766422832962,0.05202137,127.16,127.12,18.96755357]
[1766422835860,11.98202137,127.16,127.12,0.05495357]
[1766422840165,0.05202137,127.16,127.12,0.05495357]
[1766422840569,0.05202137,127.16,127.12,18.27765357]
[1766422842165,0.05202137,127.16,127.13,18.2221]
[1766422842166,0.00202137,127.16,127.13,18.2221]
[1766422845574,3.70925842,127.2,127.15,11.14]
[1766422845761,11.93,127.21,127.15,11.14]
[1766422846074,2.37512717,127.2,127.15,11.14]
[1766422846671,0.05804944,127.19,127.16,0.04949453]
[1766422848671,2.43317661,127.19,127.16,0.04949453]
[1766422849074,0.05804944,127.19,127.16,0.04949453]
[1766422850276,0.05804944,127.19,127.16,7.12989453]
[1766422850980,95.23512717,127.22,127.17,18.2198]
[1766422851271,95.23512717,127.22,127.18,7.0793]
[1766422851469,2.37512717,127.24,127.18,18.2193]
[1766422851865,0.05086392,127.22,127.2,0.05781941]
[1766422856972,14.35599109,127.22,127.16,7.08]
[1766422857177,2.37512717,127.2,127.16,7.08]
[1766422857875,0.05022343,127.19,127.17,0.05778419]
[1766422858580,0.05022343,127.19,127.14,7.0811]
[1766422859086,2.37512717,127.18,127.14,7.0811]
[1766422859587,2.37512717,127.18,127.15,0.05019107]
[1766422860094,14.30512717,127.18,127.12,7.0822]
[1766422860381,14.30512717,127.18,127.12,18.2222]
[1766422861080,0.00017263,127.16,127.14,11.19709321]
[1766422861286,14.30512717,127.2,127.14,11.19709321]
[1766422862182,0.05631047,127.18,127.14,11.19709321]
[1766422862684,14.36143764,127.18,127.14,0.05709321]
[1766422867592,2.37512717,127.16,127.14,0.05709321]
[1766422868686,11.98631047,127.18,127.14,0.05709321]
[1766422868896,14.36143764,127.18,127.14,0.05709321]
[1766422870588,2.43143764,127.18,127.14,18.21859321]
[1766422870782,0.05631047,127.18,127.14,18.21859321]
[1766422872397,13.83143764,127.18,127.14,0.05709321]
[1766422876993,13.77512717,127.16,127.1,18.1633]
[1766422877892,0.05186226,127.14,127.12,0.05068899]
[1766422878802,0.05186226,127.14,127.12,0.00068899]
[1766422883798,11.4,127.17,127.12,0.00068899]
[1766422884000,2.37512717,127.18,127.12,11.08068899]
[1766422884204,2.37512717,127.18,127.12,11.08]
[1766422884802,0.05037074,127.16,127.14,0.05929229]
[1766422887808,11.45037074,127.16,127.12,7.0827]
[1766422888204,0.05037074,127.16,127.12,18.1627]
[1766422889007,0.05037074,127.16,127.13,0.05311849]
[1766422890409,0.05037074,127.16,127.13,7.13521849]
[1766422891009,0.05037074,127.16,127.13,18.21521849]
[1766422894214,0.05037074,127.16,127.13,11.13311849]
[1766422895508,2.37512717,127.19,127.13,11.13311849]
[1766422895707,11.1,127.2,127.13,11.13311849]
[1766422896614,0.05181257,127.18,127.15,7.081]
[1766422896918,0.05181257,127.18,127.15,7.13182493]
[1766422899727,13.77512717,127.16,127.09,11.59]
[1766422900313,2.37512717,127.14,127.09,11.59]
[1766422900809,0.06002351,127.13,127.1,0.04960564]
[1766422903818,2.43515068,127.13,127.1,0.04960564]
[1766422905524,13.83515068,127.13,127.06,104.45]
[1766422905927,11.46002351,127.13,127.06,104.45]
[1766422906427,11.46002351,127.13,127.06,111.5359]
[1766422906927,11.4,127.12,127.06,104.45]
[1766422907116,11.4553329,127.1,127.04,7.0868]
[1766422907315,11.4553329,127.1,127.04,18.6768]
[1766422908024,11.4553329,127.1,127.04,11.59]
[1766422910234,0.0553329,127.1,127.04,11.59]
[1766422910418,11.4553329,127.1,127.04,11.59]
[1766422911727,11.4553329,127.1,127.04,18.6769]
[1766422912725,11.4553329,127.1,127.05,11.59]
[1766422912926,0.0553329,127.1,127.05,18.6765]
[1766422913123,0.0553329,127.1,127.06,11.59]
[1766422913426,11.4,127.16,127.07,11.59]
[1766422913627,11.4,127.16,127.1,11.59]
[1766422914330,11.4,127.16,127.12,0.05362156]
[1766422914526,0.06038737,127.14,127.12,0.05362156]
[1766422914729,92.88,127.18,127.12,11.64362156]
[1766422915034,11.4,127.19,127.12,11.64362156]
[1766422915432,11.4,127.19,127.13,7.0821]
[1766422915632,0.0538128,127.17,127.15,0.04984958]
[1766422916226,15.11609344,127.21,127.15,0.04984958]
[1766422916427,11.4,127.21,127.15,0.04984958]
[1766422916627,15.11609344,127.21,127.15,0.04984958]
[1766422916823,11.4,127.21,127.15,0.04984958]
[1766422917227,0.05760216,127.19,127.15,0.04984958]
[1766422918333,0.05760216,127.19,127.15,18.72054958]
[1766422918831,104.3,127.23,127.16,11.59]
[1766422919038,104.3,127.23,127.17,11.59]
[1766422920035,0.05505523,127.21,127.19,0.04985888]
[1766422921936,11.4,127.25,127.19,0.04985888]
[1766422922332,11.4,127.24,127.19,0.04985888]
[1766422922634,11.4,127.22,127.15,11.59]
[1766422923638,0.0534504,127.2,127.17,0.0559242]
[1766422933155,11.9734504,127.2,127.12,11.48]
[1766422933460,11.92,127.2,127.12,11.48]
[1766422934260,0.05660043,127.17,127.15,0.05403791]
[1766422934555,11.92,127.15,127.09,11.48]
[1766422935653,0.05811919,127.13,127.11,0.05579978]
[1766422936152,11.97811919,127.13,127.05,18.5665]
[1766422936352,11.92,127.13,127.05,18.5665]
[1766422936550,11.92,127.13,127.05,11.48]
[1766422936854,11.92,127.12,127.05,11.48]
[1766422937245,0.0511689,127.1,127.07,0.0548401]
[1766422939960,11.92,127.16,127.07,11.5348401]
[1766422940158,11.92,127.16,127.07,11.48]
[1766422940858,0.05248731,127.13,127.1,0.05746734]
[1766422946563,11.97248731,127.13,127.06,11.48]
[1766422947663,11.97248731,127.13,127.08,0.05060514]
[1766422957870,0.05248731,127.13,127.08,11.55060514]
[1766422958775,0.05248731,127.13,127.09,7.0844]
[1766422961876,0.05248731,127.13,127.09,18.5844]
[1766422962377,10.52,127.16,127.1,11.5]
[1766422962580,10.52,127.18,127.1,11.5]
[1766422963271,0.05201496,127.15,127.13,0.05461622]
[1766422969783,0.00201496,127.15,127.13,11.55461622]
[1766422970082,10.52,127.19,127.13,11.55461622]
[1766422970083,92.9,127.2,127.13,11.55461622]
[1766422970971,0.0530908,127.18,127.13,11.55461622]
[1766422971587,0.0530908,127.18,127.14,18.5815]
[1766422972089,12.89653549,127.17,127.13,0.05461622]
[1766422976686,10.52,127.17,127.13,0.05461622]
[1766422979193,12.89653549,127.16,127.13,0.05461622]
[1766422979488,12.89653549,127.16,127.13,0.00461622]
[1766422984090,10.52,127.16,127.13,0.00461622]
[1766422984290,12.89653549,127.16,127.13,0.00461622]
[1766422991605,13.00653549,127.14,127.08,7.0844]
[1766422991998,13.00653549,127.14,127.08,18.1644]
[1766422992710,0.050066,127.12,127.1,0.05380396]
[1766422993511,0.050066,127.12,127.1,0.00380396]
[1766423000410,10.680066,127.12,127.1,0.00380396]
[1766423000708,10.63,127.1,127.04,92.88]
[1766423000913,2.37653549,127.11,127.05,11.08]
[1766423001616,0.05027292,127.09,127.07,0.05165078]
[1766423010224,10.63,127.12,127.07,17.83715078]
[1766423011223,0.05700564,127.11,127.07,17.83715078]
[1766423012418,0.05700564,127.11,127.08,7.0849]
[1766423013219,10.62700564,127.11,127.07,0.05165078]
[1766423013924,10.57,127.19,127.09,10.7]
[1766423014127,12.94653549,127.18,127.1,10.7]
[1766423014733,92.9,127.21,127.08,103.62]
[1766423014734,10.62874647,127.15,127.08,103.62]
[1766423015518,12.79653549,127.14,127.08,103.62]
[1766423015725,12.79653549,127.14,127.08,92.92]
[1766423015930,0.04952951,127.12,127.1,0.05181977]
[1766423016526,0.04952951,127.12,127.1,0.00181977]
[1766423017321,10.46952951,127.12,127.1,0.00181977]
[1766423017831,12.846065,127.12,127.1,0.00181977]
[1766423018026,0.04952951,127.12,127.1,0.00181977]
[1766423020924,10.46952951,127.12,127.1,0.00181977]
[1766423021125,12.846065,127.12,127.04,103.07]
[1766423021324,12.79653549,127.12,127.04,103.07]
[1766423021528,10.42,127.09,127.04,92.9]
[1766423022229,0.05820107,127.08,127.05,0.05657273]
[1766423022721,10.47820107,127.08,127.02,10.17]
[1766423023127,12.85473656,127.08,127.02,10.17]
[1766423024029,0.05820107,127.08,127.02,10.17]
[1766423024921,10.47820107,127.08,127.02,10.17]
[1766423025536,10.47820107,127.08,127.02,17.2582]
[1766423028642,10.47820107,127.08,127.02,10.17]
[1766423029627,10.47820107,127.08,127.03,7.0876]
[1766423029835,0.05820107,127.08,127.04,10.17]
[1766423030134,440.4785,127.19,127.05,10.17]
[1766423030135,10.42,127.14,127.05,10.17]
[1766423030332,10.42,127.12,127.05,10.17]
[1766423030729,10.42,127.11,127.03,10.17]
[1766423030935,0.05380711,127.08,127.06,0.05593352]
[1766423032034,0.00380711,127.08,127.06,0.05593352]
[1766423033043,0.00380711,127.08,127.06,7.14193352]
[1766423033344,0.00380711,127.08,127.06,17.31193352]
[1766423035439,0.00380711,127.08,127.06,0.05593352]
[1766423036649,0.00380711,127.08,127.06,10.22593352]
[1766423037143,0.00380711,127.08,127.06,17.31183352]
[1766423037338,0.00380711,127.08,127.07,10.17]
[1766423037647,10.42,127.16,127.08,10.17]
[1766423038449,0.05589087,127.13,127.11,0.05040927]
[1766423039450,0.05589087,127.13,127.11,0.00040927]
[1766423042554,10.42,127.17,127.11,10.17040927]
[1766423042951,10.42,127.19,127.11,10.17040927]
[1766423043250,10.42,127.19,127.12,10.17]
[1766423043554,92.9,127.2,127.15,7.0808]
[1766423043856,0.00291701,127.17,127.15,7.0808]
[1766423044560,0.00291701,127.17,127.14,103.14048128]
[1766423044947,10.42,127.21,127.14,103.14048128]
[1766423045252,10.42,127.23,127.16,17.2503]
[1766423045958,10.42,127.23,127.18,0.05455598]
[1766423045959,0.05175047,127.21,127.18,0.05455598]
[1766423047847,0.00175047,127.21,127.18,10.86455598]
[1766423048056,92.9,127.26,127.19,10.81]
[1766423048564,10.28,127.25,127.18,92.9]
[1766423049056,0.05099369,127.23,127.2,0.05408203]
[1766423052949,0.05099369,127.23,127.14,110.1551]
[1766423052950,10.28,127.21,127.09,137.86487788]
[1766423053156,10.28,127.21,127.12,10.81]
[1766423053955,0.05605757,127.18,127.15,0.05048766]
[1766423055055,10.28,127.22,127.15,7.13138766]
[1766423055257,10.28,127.22,127.15,17.94138766]
[1766423055658,13.99771468,127.25,127.16,10.81]
[1766423056161,0.05166657,127.22,127.19,0.0519961]
[1766423059758,0.05166657,127.22,127.19,0.0019961]
[1766423059759,10.33166657,127.22,127.19,0.0019961]
[1766423059956,10.33166657,127.22,127.15,7.081]
[1766423060156,10.28,127.2,127.13,92.86]
[1766423060357,10.28,127.2,127.13,103.67]
[1766423060964,0.05825264,127.18,127.15,0.05186722]
[1766423062865,17.3575,127.22,127.15,10.86186722]
[1766423063466,17.3575,127.22,127.15,17.94286722]
[1766423063467,10.28,127.22,127.15,17.94286722]
[1766423063669,10.28,127.2,127.15,0.05186722]
[1766423063865,10.33059916,127.19,127.16,0.00117079]
[1766423064064,14.04831384,127.19,127.11,103.67]
[1766423064268,10.28,127.18,127.11,103.67]
[1766423064772,10.28,127.18,127.12,7.0827]
[1766423064967,0.05633169,127.16,127.14,0.05375092]
[1766423076782,0.05633169,127.16,127.11,10.81]
[1766423077885,10.32633169,127.16,127.12,0.05425597]
[1766423078094,10.27,127.16,127.08,7.0844]
[1766423078988,0.05491221,127.13,127.11,0.049632]
[1766423079191,13.98771468,127.15,127.08,7.0844]
[1766423079589,21.06881468,127.15,127.08,7.0844]
[1766423079791,10.27,127.14,127.08,17.1244]
[1766423080192,0.05320084,127.12,127.1,0.03233604]
[1766423082191,10.27,127.16,127.1,0.03233604]
[1766423083297,0.05614778,127.14,127.1,0.03233604]
[1766423083487,10.27,127.13,127.07,7.0849]
[1766423083685,10.27,127.13,127.06,102.92]
[1766423083890,10.27,127.15,127.07,10.04]
[1766423084696,0.05635981,127.12,127.1,0.05320085]
[1766423085002,10.32635981,127.12,127.06,92.88]
[1766423085592,10.32635981,127.12,127.03,110.2465]
[1766423085593,10.32635981,127.12,127.03,10.04]
[1766423085899,10.27,127.09,127.03,10.04]
[1766423086101,0.05866363,127.07,127.03,10.04]
[1766423086300,3.71771468,127.12,127.03,10.04]
[1766423086301,13.98771468,127.12,127.03,10.04]
[1766423087198,0.00246469,127.09,127.06,10.09468706]
[1766423089500,10.27246469,127.09,127.06,0.00468706]
[1766423089707,12.65062616,127.09,127.06,0.00468706]
[1766423091107,12.65062616,127.09,127.03,10.04]
[1766423091803,12.64816147,127.08,127.0,92.9]
[1766423092009,0.05345006,127.05,127.03,0.04948029]
[1766423092704,0.00345006,127.05,127.03,0.04948029]
[1766423097507,12.64816147,127.1,127.03,10.08948029]
[1766423097710,12.64816147,127.1,127.03,10.04]
[1766423098015,10.27,127.1,127.04,10.04]
[1766423098504,10.27,127.1,127.06,0.05044949]
[1766423098712,0.05197316,127.08,127.06,0.05044949]
[1766423099104,0.05197316,127.08,127.06,0.00044949]
[1766423099305,10.32197316,127.08,127.06,0.00044949]
[1766423099904,17.40697316,127.08,127.06,0.00044949]
[1766423100413,17.40697316,127.08,127.0,10.04]
[1766423100613,17.355,127.08,127.0,10.04]
[1766423101515,0.05693649,127.05,127.03,0.05697714]
[1766423102407,10.27,127.08,127.03,0.05697714]
[1766423103409,12.64816147,127.08,127.03,0.05697714]
[1766423103608,0.05701995,127.07,127.03,0.05697714]
[1766423105914,12.52816147,127.04,126.98,3.99175176]
[1766423106411,10.15,127.04,126.98,3.99175176]
[1766423106623,2.37816147,127.05,126.98,13.92175176]
[1766423106821,0.05104217,127.03,127.0,0.05360642]
[1766423107210,12.57920364,127.03,126.98,3.99175176]
[1766423107414,2.37816147,127.01,126.98,3.99175176]
[1766423107613,12.52816147,127.01,126.94,9.93]
[1766423107814,12.52816147,126.99,126.92,9.93]
[1766423108216,0.05389674,126.97,126.92,9.93]
[1766423108722,0.05389674,126.97,126.89,3.7488878]
[1766423108723,12.58205821,126.97,126.89,9.93]
[1766423109017,0.05785985,126.94,126.89,9.93]
[1766423109615,2.37816147,126.98,126.91,9.93]
[1766423109815,12.52816147,126.98,126.88,9.93]
[1766423110014,10.15,126.97,126.89,17.0254]
[1766423110217,10.15,126.97,126.89,9.93]
[1766423110721,0.05908031,126.94,126.92,0.05517302]
[1766423110918,2.37816147,126.98,126.92,0.05517302]
[1766423111117,12.52816147,126.98,126.92,0.05517302]
[1766423111921,0.05381663,126.96,126.92,9.98517302]
[1766423113416,0.05381663,126.96,126.92,0.05517302]
[1766423114827,10.20381663,126.96,126.88,9.93]
[1766423115128,10.15,126.96,126.88,9.93]
[1766423115316,10.15,126.96,126.88,17.0257]
[1766423115521,12.52816147,126.96,126.88,17.0257]
[1766423115828,0.05329125,126.93,126.91,0.05212469]
[1766423119323,0.05329125,126.93,126.91,0.00212469]
[1766423121828,10.20329125,126.93,126.86,9.93]
[1766423122233,12.52816147,126.92,126.86,9.93]
[1766423122434,12.52816147,126.92,126.84,9.93]
[1766423122642,2.37816147,126.9,126.82,9.93]
[1766423122840,0.05112106,126.87,126.82,9.93]
[1766423123644,0.05112106,126.87,126.84,7.0982]
[1766423124544,2.37816147,126.91,126.85,7.0977]
[1766423124742,10.15,126.92,126.85,7.0977]
[1766423125645,0.05220952,126.9,126.87,0.05477781]
[1766423126938,12.58037099,126.9,126.83,7.0985]
[1766423127133,12.52816147,126.9,126.81,9.93]
[1766423127736,12.52816147,126.9,126.82,9.93]
[1766423128036,0.05367756,126.87,126.82,9.93]
[1766423128638,0.05367756,126.87,126.81,9.93]
[1766423129140,0.05367756,126.87,126.83,7.0988]
[1766423129445,0.05367756,126.87,126.83,17.0288]
[1766423129738,0.00367756,126.87,126.84,9.79]
[1766423129942,9.94,126.93,126.85,12.16816147]
[1766423130344,2.37816147,126.94,126.87,9.79]
[1766423130843,2.37816147,126.96,126.9,7.0947]
[1766423131438,12.31816147,126.96,126.86,9.79]
[1766423131745,12.31816147,126.94,126.86,9.79]
[1766423131946,0.05755842,126.91,126.89,0.05833394]
[1766423132846,9.99755842,126.91,126.85,7.0973]
[1766423133049,9.99755842,126.91,126.82,102.83]
[1766423133233,9.94,126.91,126.82,9.79]
[1766423133438,9.94,126.89,126.8,9.79]
[1766423134039,0.05843037,126.86,126.83,0.05949919]
[1766423134443,16.32895769,126.91,126.83,9.84949919]
[1766423134646,16.32895769,126.91,126.83,9.79]
[1766423135044,16.32895769,126.91,126.83,16.8888]
[1766423135443,0.06039092,126.88,126.86,0.0579934]
[1766423135644,0.06039092,126.88,126.83,9.79]
[1766423135842,0.06039092,126.88,126.81,9.94]
[1766423136551,10.31039092,126.88,126.83,0.05276263]
[1766423138549,16.69934861,126.88,126.83,0.00276263]
[1766423139351,10.19,126.87,126.83,0.00276263]
[1766423139552,10.19,126.87,126.79,7.1009]
[1766423140150,10.19,126.85,126.78,7.1016]
[1766423140650,0.05234111,126.83,126.78,9.94]
[1766423140846,10.19,126.88,126.79,120.3999]
[1766423141046,10.24,126.9,126.81,9.94]
[1766423141950,0.05580245,126.87,126.84,0.060014]
[1766423142147,0.05580245,126.87,126.81,9.94]
[1766423142541,0.05580245,126.87,126.82,17.0394]
[1766423142746,10.17,126.9,126.82,17.0394]
[1766423142948,10.17,126.9,126.82,9.94]
[1766423143251,0.05462892,126.87,126.83,17.0387]
[1766423146352,86.98,126.91,126.84,17.0382]
[1766423146749,86.98,126.91,126.85,9.94]
[1766423147256,10.21,126.93,126.83,9.94]
[1766423147458,0.05248542,126.89,126.87,0.05387392]
[1766423151166,10.21,126.93,126.87,7.15047392]
[1766423152171,0.05404854,126.91,126.87,7.15047392]
[1766423152364,0.05404854,126.91,126.87,17.09047392]
[1766423153258,10.25,126.96,126.89,9.94]
[1766423154163,0.05486443,126.94,126.91,0.05212789]
[1766423154761,10.30486443,126.94,126.84,9.94]
[1766423155059,10.25,126.94,126.86,9.94]
[1766423155563,10.25,126.94,126.86,17.0368]
[1766423155953,0.06033236,126.91,126.89,0.06055092]
[1766423156466,0.06033236,126.91,126.89,0.00055092]
[1766423159573,0.06033236,126.91,126.85,9.94]
[1766423159982,10.19033236,126.91,126.84,93.08]
[1766423160273,10.19033236,126.91,126.84,103.02]
[1766423160472,10.19033236,126.91,126.86,0.05323727]
[1766423160678,10.08,126.87,126.79,9.94]
[1766423161770,10.08,126.87,126.8,9.94]
[1766423162164,10.08,126.87,126.81,7.0998]
[1766423162364,10.08,126.87,126.8,9.94]
[1766423162769,0.05579394,126.85,126.82,0.05309564]
[1766423163663,10.13579394,126.85,126.77,9.94]
[1766423163862,10.08,126.85,126.75,1.37223975]
[1766423164068,10.08,126.84,126.75,9.94]
[1766423164668,203.4734,126.85,126.75,9.94]
[1766423164669,0.05755155,126.81,126.75,9.94]
[1766423165067,0.05755155,126.81,126.75,120.4376]
[1766423165269,10.14,126.88,126.77,9.94]
[1766423165472,9.72,126.87,126.77,17.0419]
[1766423165665,9.72,126.87,126.78,9.83]
[1766423166279,9.77456626,126.84,126.81,0.00171483]
[1766423166577,0.05456626,126.84,126.81,0.00171483]
[1766423167374,0.05456626,126.84,126.71,9.83]
[1766423167375,9.72,126.82,126.71,9.83]
[1766423167877,9.72,126.81,126.72,7.1047]
[1766423168081,9.72,126.81,126.7,1.37278107]
[1766423168276,0.05562718,126.78,126.69,9.83]
[1766423168476,0.05872554,126.75,126.71,7.1054]
[1766423168877,0.05872554,126.75,126.69,9.83]
[1766423169078,9.77872554,126.75,126.66,13.87729214]
[1766423169281,0.05926032,126.72,126.67,9.83]
[1766423169873,0.05926032,126.72,126.66,11.15569214]
[1766423170176,0.05926032,126.72,126.66,13.87729214]
[1766423170381,0.05926032,126.72,126.68,9.83]
[1766423170587,0.05926032,126.72,126.67,110.5639]
[1766423170588,9.72,126.78,126.7,110.5411]
[1766423170782,9.72,126.78,126.69,9.83]